[Event "GrandPrix_29.05"]
[Site "Chess.com"]
[Date "2020.05.29"]
[Round "2"]
[White "Glek_Igor"]
[Black "dzhumagaliev"]
[Result "1-0"]
[WhiteElo "2503"]
[BlackElo "2077"]
[TimeControl "600+2"]
[EndTime "9:57:01 PDT"]
[Termination "Glek_Igor won by checkmate"]

1. e4 {[%clk 0:09:55]} 1... c5 {[%clk 0:10:00.9]} 2. Nf3 {[%clk 0:09:54.3]} 2...
Nc6 {[%clk 0:10:01.9]} 3. Bb5 {[%clk 0:09:54.3]} 3... e6 {[%clk 0:10:03.1]} 4.
O-O {[%clk 0:09:53.1]} 4... Nge7 {[%clk 0:10:03.4]} 5. Re1 {[%clk 0:09:53.4]}
5... a6 {[%clk 0:10:04.2]} 6. Bxc6 {[%clk 0:09:54.4]} 6... bxc6 {[%clk
0:09:49.4]} 7. b3 {[%clk 0:09:53.4]} 7... Ng6 {[%clk 0:09:47.2]} 8. d4 {[%clk
0:09:38.9]} 8... cxd4 {[%clk 0:09:45]} 9. Qxd4 {[%clk 0:09:38.9]} 9... d6 {[%clk
0:09:31.4]} 10. c4 {[%clk 0:09:31.7]} 10... Be7 {[%clk 0:09:02.3]} 11. Bb2
{[%clk 0:09:31.1]} 11... Bf6 {[%clk 0:09:02.2]} 12. Qd2 {[%clk 0:09:25.6]} 12...
Bxb2 {[%clk 0:09:02]} 13. Qxb2 {[%clk 0:09:26.5]} 13... O-O {[%clk 0:09:03.5]}
14. Nc3 {[%clk 0:09:23.3]} 14... Qc7 {[%clk 0:08:51.6]} 15. Rad1 {[%clk
0:09:21.2]} 15... Bb7 {[%clk 0:08:45.2]} 16. c5 {[%clk 0:08:10]} 16... d5 {[%clk
0:08:39.3]} 17. e5 {[%clk 0:08:01]} 17... a5 {[%clk 0:08:37.9]} 18. Ne2 {[%clk
0:07:50]} 18... Qe7 {[%clk 0:08:27.8]} 19. Qc1 {[%clk 0:07:04.9]} 19... f5
{[%clk 0:07:26.1]} 20. Ned4 {[%clk 0:06:14.6]} 20... h6 {[%clk 0:07:11.1]} 21.
a3 {[%clk 0:06:10.4]} 21... Qd7 {[%clk 0:06:59.6]} 22. Qd2 {[%clk 0:05:49.9]}
22... Rfb8 {[%clk 0:06:57.1]} 23. Rb1 {[%clk 0:05:44.6]} 23... Bc8 {[%clk
0:06:50.2]} 24. b4 {[%clk 0:05:44]} 24... axb4 {[%clk 0:06:45.8]} 25. Rxb4
{[%clk 0:05:36.9]} 25... Rxb4 {[%clk 0:06:15.1]} 26. axb4 {[%clk 0:05:15.7]}
26... Ne7 {[%clk 0:06:15.5]} 27. h4 {[%clk 0:05:02.8]} 27... Qa7 {[%clk
0:06:10.5]} 28. Nb3 {[%clk 0:04:45.6]} 28... Rb8 {[%clk 0:05:39.4]} 29. Ra1
{[%clk 0:04:30.1]} 29... Qb7 {[%clk 0:05:35.4]} 30. Ra4 {[%clk 0:04:30.4]} 30...
Qb5 {[%clk 0:05:03.9]} 31. Qa2 {[%clk 0:04:15.8]} 31... Qc4 {[%clk 0:05:04]} 32.
Ra7 {[%clk 0:03:59.5]} 32... Bb7 {[%clk 0:04:22.8]} 33. Nbd4 {[%clk 0:02:38.4]}
33... Qxb4 {[%clk 0:04:12.7]} 34. Nxe6 {[%clk 0:02:18.3]} 34... Kf7 {[%clk
0:03:48.7]} 35. Nfd4 {[%clk 0:01:06.4]} 35... Qe1+ {[%clk 0:03:05.6]} 36. Kh2
{[%clk 0:01:06.2]} 36... Qxe5+ {[%clk 0:03:05.4]} 37. f4 {[%clk 0:01:06.1]}
37... Qe1 {[%clk 0:02:44.4]} 38. g3 {[%clk 0:00:51]} 38... Qe3 {[%clk
0:01:02.4]} 39. Qb2 {[%clk 0:00:32]} 39... Ba6 {[%clk 0:00:20.4]} 40. Rxe7+
{[%clk 0:00:27]} 40... Kf6 {[%clk 0:00:12]} 41. Nb5+ {[%clk 0:00:16.9]} 41...
Kxe7 {[%clk 0:00:10]} 42. Qxg7+ {[%clk 0:00:16.5]} 42... Kxe6 {[%clk 0:00:08.4]}
43. Nc7# {[%clk 0:00:16]} 1-0

[Event "GrandPrix_29.05"]
[Site "Chess.com"]
[Date "2020.05.29"]
[Round "2"]
[White "KuzubovYuriy"]
[Black "Flawless_Fighter"]
[Result "1-0"]
[WhiteElo "2435"]
[BlackElo "2068"]
[TimeControl "600+2"]
[EndTime "9:57:02 PDT"]
[Termination "KuzubovYuriy won by resignation"]

1. d4 {[%clk 0:10:01.9]} 1... Nf6 {[%clk 0:10:00.3]} 2. c4 {[%clk 0:10:02.6]}
2... e6 {[%clk 0:10:01.5]} 3. Nf3 {[%clk 0:10:01.5]} 3... d5 {[%clk 0:10:01.7]}
4. g3 {[%clk 0:09:52.5]} 4... Bb4+ {[%clk 0:10:01.1]} 5. Bd2 {[%clk 0:09:53]}
5... Be7 {[%clk 0:10:01.7]} 6. Bg2 {[%clk 0:09:53.4]} 6... O-O {[%clk
0:09:56.3]} 7. O-O {[%clk 0:09:54.1]} 7... Nbd7 {[%clk 0:09:56]} 8. Qc2 {[%clk
0:09:54.4]} 8... c6 {[%clk 0:09:55.4]} 9. Rd1 {[%clk 0:09:43.1]} 9... b6 {[%clk
0:09:55.9]} 10. Bf4 {[%clk 0:09:42.3]} 10... Bb7 {[%clk 0:09:53.2]} 11. Ne5
{[%clk 0:09:43]} 11... h6 {[%clk 0:08:32.6]} 12. Nc3 {[%clk 0:07:57.9]} 12...
Qc8 {[%clk 0:07:39]} 13. Rac1 {[%clk 0:07:30.3]} 13... Nxe5 {[%clk 0:06:10.8]}
14. dxe5 {[%clk 0:07:28.7]} 14... Nd7 {[%clk 0:06:11.2]} 15. cxd5 {[%clk
0:06:40.2]} 15... cxd5 {[%clk 0:06:11.8]} 16. Qb1 {[%clk 0:06:39.9]} 16... Bc6
{[%clk 0:05:29.1]} 17. b4 {[%clk 0:04:32.1]} 17... Qe8 {[%clk 0:05:26.2]} 18. e4
{[%clk 0:03:16.7]} 18... d4 {[%clk 0:05:16]} 19. Ne2 {[%clk 0:02:22]} 19... Rc8
{[%clk 0:03:10]} 20. Nxd4 {[%clk 0:02:18.9]} 20... Ba4 {[%clk 0:02:32.1]} 21.
Rxc8 {[%clk 0:01:52]} 21... Qxc8 {[%clk 0:02:34]} 22. Rc1 {[%clk 0:01:52.7]}
22... Qb7 {[%clk 0:02:13.4]} 23. b5 {[%clk 0:01:39.2]} 23... Bc5 {[%clk
0:01:58.6]} 24. Rc4 {[%clk 0:01:24.5]} 24... Bxd4 {[%clk 0:01:34.6]} 25. Rxd4
{[%clk 0:01:26.4]} 25... Nc5 {[%clk 0:01:36]} 26. Bf1 {[%clk 0:01:22]} 26... Qc7
{[%clk 0:01:17.6]} 27. Be3 {[%clk 0:01:12.8]} 27... a6 {[%clk 0:00:29.1]} 28.
bxa6 {[%clk 0:01:11.8]} 28... b5 {[%clk 0:00:15.7]} 29. Rd6 {[%clk 0:01:08.2]}
29... Ra8 {[%clk 0:00:11.7]} 30. Qc1 {[%clk 0:01:06.9]} 30... Nxa6 {[%clk
0:00:03.8]} 31. Rxa6 {[%clk 0:01:07.5]} 31... Qb7 {[%clk 0:00:02.7]} 32. Rxa8+
{[%clk 0:01:07.3]} 32... Qxa8 {[%clk 0:00:04.3]} 33. f3 {[%clk 0:01:06.8]} 33...
Qd8 {[%clk 0:00:03.9]} 34. Qd2 {[%clk 0:01:02.2]} 34... Qc7 {[%clk 0:00:05.1]}
35. a3 {[%clk 0:00:58.9]} 35... h5 {[%clk 0:00:05.9]} 36. f4 {[%clk 0:00:52.3]}
36... Qc8 {[%clk 0:00:05.6]} 37. Kf2 {[%clk 0:00:51.8]} 37... Qc7 {[%clk
0:00:06.1]} 38. Be2 {[%clk 0:00:50.8]} 38... g6 {[%clk 0:00:05.7]} 39. Bd4
{[%clk 0:00:47]} 39... Qc6 {[%clk 0:00:06.8]} 40. Bf3 {[%clk 0:00:45.9]} 40...
Qc4 {[%clk 0:00:07.7]} 41. Bc3 {[%clk 0:00:45.6]} 41... Qc7 {[%clk 0:00:07]} 42.
Bb4 {[%clk 0:00:45.7]} 42... Bb3 {[%clk 0:00:07.3]} 43. h3 {[%clk 0:00:44.8]}
43... Kg7 {[%clk 0:00:04.6]} 44. g4 {[%clk 0:00:45.5]} 44... hxg4 {[%clk
0:00:06]} 45. hxg4 {[%clk 0:00:46.6]} 45... Qb6+ {[%clk 0:00:06.4]} 46. Kg2
{[%clk 0:00:47.2]} 46... Bc4 {[%clk 0:00:07]} 47. f5 {[%clk 0:00:46.8]} 47...
exf5 {[%clk 0:00:06.8]} 48. exf5 {[%clk 0:00:47.3]} 48... gxf5 {[%clk
0:00:07.4]} 49. gxf5 {[%clk 0:00:48.3]} 49... Kh7 {[%clk 0:00:05.6]} 50. f6
{[%clk 0:00:47.4]} 50... Qb8 {[%clk 0:00:04.7]} 51. Be4+ {[%clk 0:00:47.4]} 1-0

[Event "GrandPrix_29.05"]
[Site "Chess.com"]
[Date "2020.05.29"]
[Round "2"]
[White "Kopytkin"]
[Black "GM_LOADING"]
[Result "1-0"]
[WhiteElo "2193"]
[BlackElo "2349"]
[TimeControl "600+2"]
[EndTime "9:57:04 PDT"]
[Termination "Kopytkin won on time"]

1. e4 {[%clk 0:10:01.9]} 1... e5 {[%clk 0:09:56.4]} 2. Nf3 {[%clk 0:10:00.7]}
2... Nc6 {[%clk 0:09:57.5]} 3. Bc4 {[%clk 0:10:01.8]} 3... Nf6 {[%clk
0:09:58.3]} 4. d3 {[%clk 0:10:03.1]} 4... h6 {[%clk 0:09:58.9]} 5. Nc3 {[%clk
0:10:01.7]} 5... d6 {[%clk 0:09:55.8]} 6. h3 {[%clk 0:09:46.1]} 6... Na5 {[%clk
0:09:53]} 7. Be3 {[%clk 0:09:40.5]} 7... Nxc4 {[%clk 0:09:34.5]} 8. dxc4 {[%clk
0:09:41.4]} 8... b6 {[%clk 0:09:36]} 9. Qd3 {[%clk 0:09:21.2]} 9... Be7 {[%clk
0:09:31.6]} 10. Rd1 {[%clk 0:09:09.9]} 10... O-O {[%clk 0:08:59.4]} 11. O-O
{[%clk 0:07:42.4]} 11... Qe8 {[%clk 0:08:45.7]} 12. Nh2 {[%clk 0:06:22.9]} 12...
Be6 {[%clk 0:06:42.8]} 13. f3 {[%clk 0:04:53.4]} 13... Nd7 {[%clk 0:06:14.4]}
14. Nd5 {[%clk 0:04:20.1]} 14... Bd8 {[%clk 0:06:06.6]} 15. g4 {[%clk
0:04:10.5]} 15... Rc8 {[%clk 0:05:00.2]} 16. b3 {[%clk 0:04:06.5]} 16... Bg5
{[%clk 0:04:30.2]} 17. Rf2 {[%clk 0:03:37.8]} 17... Qd8 {[%clk 0:03:07.4]} 18.
Nf1 {[%clk 0:03:02.8]} 18... g6 {[%clk 0:02:51.8]} 19. Rg2 {[%clk 0:02:43.7]}
19... Kh7 {[%clk 0:02:39.5]} 20. Qd2 {[%clk 0:02:12]} 20... Rg8 {[%clk
0:01:52.5]} 21. Ng3 {[%clk 0:02:09.7]} 21... Bh4 {[%clk 0:01:37.2]} 22. Kh2
{[%clk 0:01:49.4]} 22... c6 {[%clk 0:00:29]} 23. Nc3 {[%clk 0:01:46.9]} 23...
Qf6 {[%clk 0:00:29.8]} 24. Rf1 {[%clk 0:01:27.6]} 24... Bg5 {[%clk 0:00:26.9]}
25. Rgf2 {[%clk 0:00:26.7]} 25... Nc5 {[%clk 0:00:15.6]} 26. Rd1 {[%clk
0:00:10.8]} 26... Rcd8 {[%clk 0:00:15.7]} 27. Qc1 {[%clk 0:00:11.5]} 27... Bf4
{[%clk 0:00:10.1]} 28. Bxf4 {[%clk 0:00:10.3]} 28... exf4 {[%clk 0:00:11.4]} 29.
Nge2 {[%clk 0:00:11.4]} 29... h5 {[%clk 0:00:13]} 30. Qxf4 {[%clk 0:00:11.4]}
30... Qe7 {[%clk 0:00:14.5]} 31. Kg2 {[%clk 0:00:07]} 31... Kg7 {[%clk
0:00:14.4]} 32. Qe3 {[%clk 0:00:05.3]} 32... hxg4 {[%clk 0:00:15.7]} 33. hxg4
{[%clk 0:00:06.2]} 33... Rh8 {[%clk 0:00:14.5]} 34. f4 {[%clk 0:00:04.7]} 34...
Bxg4 {[%clk 0:00:14.6]} 35. Qg3 {[%clk 0:00:03.6]} 35... Bxe2 {[%clk 0:00:08.1]}
36. Rxe2 {[%clk 0:00:04.2]} 36... Rh5 {[%clk 0:00:07.7]} 37. Rh1 {[%clk
0:00:04.1]} 37... Rdh8 {[%clk 0:00:09.4]} 38. Rxh5 {[%clk 0:00:04.7]} 38... Rxh5
{[%clk 0:00:07.8]} 39. e5 {[%clk 0:00:04.9]} 1-0

[Event "GrandPrix_29.05"]
[Site "Chess.com"]
[Date "2020.05.29"]
[Round "2"]
[White "Eltaj_Safarli"]
[Black "francyIM"]
[Result "0-1"]
[WhiteElo "2421"]
[BlackElo "2514"]
[TimeControl "600+2"]
[EndTime "9:57:08 PDT"]
[Termination "francyIM won by resignation"]

1. e4 {[%clk 0:10:01.9]} 1... e5 {[%clk 0:09:52.7]} 2. Nf3 {[%clk 0:09:58.1]}
2... Nc6 {[%clk 0:09:52.8]} 3. Bb5 {[%clk 0:09:59.5]} 3... a6 {[%clk 0:09:50.9]}
4. Ba4 {[%clk 0:10:00.3]} 4... Nf6 {[%clk 0:09:48.2]} 5. Nc3 {[%clk 0:10:01.2]}
5... d6 {[%clk 0:09:42.3]} 6. Bxc6+ {[%clk 0:09:42.3]} 6... bxc6 {[%clk
0:09:41.3]} 7. d4 {[%clk 0:09:44.2]} 7... exd4 {[%clk 0:09:40.1]} 8. Qxd4 {[%clk
0:09:45.3]} 8... c5 {[%clk 0:09:25.6]} 9. Qd3 {[%clk 0:09:43.3]} 9... Bb7 {[%clk
0:09:00]} 10. Bf4 {[%clk 0:09:37.9]} 10... Nh5 {[%clk 0:08:35.7]} 11. Be3 {[%clk
0:09:29.7]} 11... Be7 {[%clk 0:08:35.6]} 12. O-O-O {[%clk 0:09:28.4]} 12... O-O
{[%clk 0:08:28]} 13. e5 {[%clk 0:09:18.9]} 13... Qc8 {[%clk 0:07:41.7]} 14. Nd5
{[%clk 0:08:15.2]} 14... Bxd5 {[%clk 0:06:02.5]} 15. Qxd5 {[%clk 0:08:17.1]}
15... c6 {[%clk 0:06:01.5]} 16. Qd3 {[%clk 0:07:32.8]} 16... d5 {[%clk
0:05:42.4]} 17. c4 {[%clk 0:07:32.6]} 17... Rd8 {[%clk 0:04:51.1]} 18. Rhe1
{[%clk 0:06:20.8]} 18... Qg4 {[%clk 0:04:31]} 19. Qf1 {[%clk 0:05:54]} 19... Nf4
{[%clk 0:03:28.3]} 20. Bxf4 {[%clk 0:05:05.4]} 20... Qxf4+ {[%clk 0:03:30.2]}
21. Kc2 {[%clk 0:05:07]} 21... dxc4 {[%clk 0:02:51.8]} 22. Qe2 {[%clk
0:04:43.8]} 22... Rxd1 {[%clk 0:01:16.4]} 23. Rxd1 {[%clk 0:04:45]} 23... Rb8
{[%clk 0:01:05.7]} 24. Kc3 {[%clk 0:04:08.2]} 24... Bd8 {[%clk 0:00:59.1]} 25.
Kc2 {[%clk 0:02:38]} 25... Ba5 {[%clk 0:00:22]} 26. Rd6 {[%clk 0:01:49.1]} 26...
Qf5+ {[%clk 0:00:20.9]} 27. Kc1 {[%clk 0:01:50.6]} 27... Bc3 {[%clk 0:00:17.3]}
28. Qc2 {[%clk 0:01:12.8]} 28... Qf4+ {[%clk 0:00:16]} 29. Kb1 {[%clk
0:01:13.9]} 29... Bxe5 {[%clk 0:00:16.5]} 30. Nxe5 {[%clk 0:00:44.8]} 30... Qxe5
{[%clk 0:00:18.4]} 31. Qd2 {[%clk 0:00:25]} 31... g6 {[%clk 0:00:16.9]} 32. f4
{[%clk 0:00:23.9]} 32... Rxb2+ {[%clk 0:00:16.2]} 33. Qxb2 {[%clk 0:00:21.9]}
33... Qxd6 {[%clk 0:00:17.1]} 34. Qe5 {[%clk 0:00:10.8]} 34... Qxe5 {[%clk
0:00:11.7]} 35. fxe5 {[%clk 0:00:12.7]} 35... Kf8 {[%clk 0:00:12.6]} 36. Kc2
{[%clk 0:00:14.4]} 36... Ke7 {[%clk 0:00:14]} 37. Kc3 {[%clk 0:00:16.3]} 37...
Ke6 {[%clk 0:00:15.5]} 38. Kxc4 {[%clk 0:00:18.2]} 38... Kxe5 {[%clk 0:00:17]}
39. Kxc5 {[%clk 0:00:20.1]} 39... f5 {[%clk 0:00:18.6]} 40. a4 {[%clk 0:00:21]}
40... f4 {[%clk 0:00:19.7]} 41. a5 {[%clk 0:00:20.7]} 41... g5 {[%clk
0:00:20.7]} 42. h3 {[%clk 0:00:21.3]} 42... h5 {[%clk 0:00:21.8]} 43. Kxc6
{[%clk 0:00:21.1]} 43... g4 {[%clk 0:00:22.9]} 44. hxg4 {[%clk 0:00:23]} 44...
hxg4 {[%clk 0:00:24.7]} 45. Kb6 {[%clk 0:00:24.6]} 45... Kd6 {[%clk 0:00:24.4]}
46. Kxa6 {[%clk 0:00:23.8]} 46... Kc6 {[%clk 0:00:25.7]} 47. Ka7 {[%clk
0:00:25.4]} 47... f3 {[%clk 0:00:25.7]} 48. gxf3 {[%clk 0:00:26.8]} 48... gxf3
{[%clk 0:00:27.1]} 49. a6 {[%clk 0:00:27.9]} 49... f2 {[%clk 0:00:21.1]} 50. Kb8
{[%clk 0:00:27.9]} 50... f1=Q {[%clk 0:00:22.3]} 51. Ka7 {[%clk 0:00:28.6]}
51... Kc7 {[%clk 0:00:21.5]} 0-1

[Event "GrandPrix_29.05"]
[Site "Chess.com"]
[Date "2020.05.29"]
[Round "2"]
[White "Mugzyyy"]
[Black "chansen64"]
[Result "1-0"]
[WhiteElo "2608"]
[BlackElo "2094"]
[TimeControl "600+2"]
[EndTime "9:57:13 PDT"]
[Termination "Mugzyyy won by resignation"]

1. d4 {[%clk 0:10:01.9]} 1... Nf6 {[%clk 0:09:59.9]} 2. c4 {[%clk 0:10:02.9]}
2... e6 {[%clk 0:10:00.3]} 3. Nc3 {[%clk 0:09:58]} 3... Bb4 {[%clk 0:10:00.3]}
4. Nf3 {[%clk 0:09:59.8]} 4... b6 {[%clk 0:09:50.6]} 5. Bg5 {[%clk 0:09:50.5]}
5... Bb7 {[%clk 0:09:46.7]} 6. e3 {[%clk 0:09:50.1]} 6... h6 {[%clk 0:09:46.5]}
7. Bh4 {[%clk 0:09:51.1]} 7... Bxc3+ {[%clk 0:09:32.2]} 8. bxc3 {[%clk
0:09:50.7]} 8... d6 {[%clk 0:09:33.1]} 9. Bd3 {[%clk 0:09:51.1]} 9... Nbd7
{[%clk 0:09:31.2]} 10. O-O {[%clk 0:09:47.8]} 10... O-O {[%clk 0:09:28.5]} 11.
Nd2 {[%clk 0:09:42.4]} 11... e5 {[%clk 0:09:08]} 12. e4 {[%clk 0:09:42]} 12...
Qe8 {[%clk 0:08:34.6]} 13. Re1 {[%clk 0:09:41.3]} 13... c5 {[%clk 0:08:22.9]}
14. d5 {[%clk 0:09:40.2]} 14... Nh7 {[%clk 0:07:59.7]} 15. Nf1 {[%clk
0:09:39.5]} 15... g6 {[%clk 0:07:54.3]} 16. Ne3 {[%clk 0:09:36.7]} 16... Ndf6
{[%clk 0:07:50]} 17. Bc2 {[%clk 0:09:29.1]} 17... Bc8 {[%clk 0:07:48]} 18. f3
{[%clk 0:09:18]} 18... Bd7 {[%clk 0:07:47.9]} 19. Bf2 {[%clk 0:09:12.2]} 19...
Nh5 {[%clk 0:07:48]} 20. g3 {[%clk 0:09:00.6]} 20... Ng5 {[%clk 0:07:41.9]} 21.
h4 {[%clk 0:09:01.3]} 21... Nh3+ {[%clk 0:07:24.1]} 22. Kg2 {[%clk 0:09:02.3]}
22... Qe7 {[%clk 0:07:11.7]} 23. Ng4 {[%clk 0:08:52.5]} 23... Nxf2 {[%clk
0:06:22.7]} 24. Nxf2 {[%clk 0:08:45.3]} 24... Ng7 {[%clk 0:06:18.1]} 25. Ba4
{[%clk 0:08:38.7]} 25... f5 {[%clk 0:06:14.8]} 26. exf5 {[%clk 0:08:22.2]} 26...
Bxa4 {[%clk 0:05:39.8]} 27. Qxa4 {[%clk 0:08:20.6]} 27... Rxf5 {[%clk
0:05:11.4]} 28. Ng4 {[%clk 0:08:18.1]} 28... Kh7 {[%clk 0:05:01.8]} 29. f4
{[%clk 0:08:18.2]} 29... h5 {[%clk 0:04:39.8]} 30. Nh2 {[%clk 0:08:13.7]} 30...
Qf8 {[%clk 0:04:29.6]} 31. fxe5 {[%clk 0:08:05.2]} 31... dxe5 {[%clk 0:04:13]}
32. Qc2 {[%clk 0:07:54.9]} 32... Re8 {[%clk 0:04:10]} 33. Re3 {[%clk 0:07:40.3]}
33... Qd6 {[%clk 0:03:45.3]} 34. Nf3 {[%clk 0:07:34.7]} 34... Ref8 {[%clk
0:03:40.2]} 35. Rae1 {[%clk 0:07:24.7]} 35... Qf6 {[%clk 0:02:55.7]} 36. Ng5+
{[%clk 0:07:24.7]} 36... Kh8 {[%clk 0:02:55.6]} 37. Ne4 {[%clk 0:07:23.1]} 37...
Qe7 {[%clk 0:02:52.8]} 38. a4 {[%clk 0:07:19.3]} 38... Ne8 {[%clk 0:02:53.5]}
39. a5 {[%clk 0:07:19.2]} 39... Nd6 {[%clk 0:02:49.9]} 40. Nxd6 {[%clk
0:07:17.1]} 40... Qxd6 {[%clk 0:02:50.4]} 41. axb6 {[%clk 0:07:19]} 41... axb6
{[%clk 0:02:51]} 42. R1e2 {[%clk 0:07:05.1]} 42... Qf6 {[%clk 0:02:49]} 43. Qd2
{[%clk 0:06:53.8]} 43... Qd6 {[%clk 0:02:44.9]} 44. Re4 {[%clk 0:06:45.7]} 44...
Kg7 {[%clk 0:02:45.3]} 45. Qe3 {[%clk 0:06:45.6]} 45... Re8 {[%clk 0:02:44.2]}
46. Kh2 {[%clk 0:06:38.2]} 46... Re7 {[%clk 0:02:44.3]} 47. Kh3 {[%clk
0:06:34.6]} 47... Qd7 {[%clk 0:02:42.6]} 48. Kg2 {[%clk 0:06:35.3]} 48... Qd6
{[%clk 0:02:43]} 49. Kg1 {[%clk 0:06:33.8]} 49... Qf6 {[%clk 0:02:42.6]} 50. Re1
{[%clk 0:05:34.7]} 50... Kh7 {[%clk 0:02:35.9]} 51. Kg2 {[%clk 0:05:21.2]} 51...
Kg7 {[%clk 0:02:35.9]} 52. Qd2 {[%clk 0:05:14.3]} 52... Qd6 {[%clk 0:02:33.2]}
53. Qb2 {[%clk 0:05:08.2]} 53... Ref7 {[%clk 0:02:24.9]} 54. R1e2 {[%clk
0:05:00.5]} 54... Qf6 {[%clk 0:02:22.2]} 55. Qd2 {[%clk 0:04:59.1]} 55... Qd6
{[%clk 0:02:21]} 56. Qe3 {[%clk 0:04:46.2]} 56... Re7 {[%clk 0:02:21]} 57. g4
{[%clk 0:04:47.7]} 57... hxg4 {[%clk 0:02:21.2]} 58. Rxg4 {[%clk 0:04:49.6]}
58... Ref7 {[%clk 0:02:15]} 59. Re4 {[%clk 0:04:38]} 59... Re7 {[%clk
0:02:09.4]} 60. Qg3 {[%clk 0:04:37.1]} 60... Qf6 {[%clk 0:02:05.3]} 61. Rd2
{[%clk 0:04:32.3]} 61... Qd6 {[%clk 0:02:00]} 62. Rf2 {[%clk 0:04:26.6]} 62...
Rxf2+ {[%clk 0:01:58.8]} 63. Kxf2 {[%clk 0:04:22.2]} 63... Rf7+ {[%clk
0:01:59.8]} 64. Ke2 {[%clk 0:04:21.9]} 64... Rf5 {[%clk 0:02:00.8]} 65. Rg4
{[%clk 0:04:18.9]} 65... Qf6 {[%clk 0:01:59.2]} 66. Ke3 {[%clk 0:03:54.2]} 66...
Kf7 {[%clk 0:01:50.1]} 67. Re4 {[%clk 0:03:13.4]} 67... Kg7 {[%clk 0:01:49.6]}
68. Qg4 {[%clk 0:03:02]} 68... Kh6 {[%clk 0:01:39.9]} 69. Kd3 {[%clk 0:03:01.1]}
69... Rf3+ {[%clk 0:01:38.2]} 70. Kc2 {[%clk 0:03:01.5]} 70... Rf5 {[%clk
0:01:38]} 71. Kb3 {[%clk 0:03:02.3]} 71... Rf4 {[%clk 0:01:10.3]} 72. Qg5+
{[%clk 0:02:26.3]} 72... Qxg5 {[%clk 0:00:55.5]} 73. hxg5+ {[%clk 0:02:28.2]}
73... Kxg5 {[%clk 0:00:56.6]} 74. Rxe5+ {[%clk 0:02:30]} 74... Rf5 {[%clk
0:00:57.1]} 75. Re6 {[%clk 0:02:30.7]} 75... Rf6 {[%clk 0:00:57.7]} 76. Rxf6
{[%clk 0:02:23]} 76... Kxf6 {[%clk 0:00:58.1]} 77. Kc2 {[%clk 0:02:24.9]} 77...
Ke5 {[%clk 0:00:56.6]} 78. Kd3 {[%clk 0:02:26.1]} 78... Kf5 {[%clk 0:00:53.5]}
79. Ke3 {[%clk 0:02:26.9]} 79... Ke5 {[%clk 0:00:54.4]} 80. Kf3 {[%clk
0:02:27.2]} 80... Kf5 {[%clk 0:00:55.7]} 81. Kg3 {[%clk 0:02:26.9]} 81... Kg5
{[%clk 0:00:56.8]} 82. Kh3 {[%clk 0:02:28.2]} 82... Kf5 {[%clk 0:00:48.1]} 83.
Kh4 {[%clk 0:02:26.5]} 83... Ke5 {[%clk 0:00:42.6]} 84. Kg5 {[%clk 0:02:25.8]}
84... b5 {[%clk 0:00:43.8]} 85. cxb5 {[%clk 0:02:27.6]} 85... Kxd5 {[%clk
0:00:42.2]} 86. c4+ {[%clk 0:02:25.1]} 1-0

[Event "GrandPrix_29.05"]
[Site "Chess.com"]
[Date "2020.05.29"]
[Round "2"]
[White "TheJoker64"]
[Black "TheEternalPatzer"]
[Result "1-0"]
[WhiteElo "2373"]
[BlackElo "1953"]
[TimeControl "600+2"]
[EndTime "9:57:16 PDT"]
[Termination "TheJoker64 won on time"]

1. e4 {[%clk 0:10:01.9]} 1... d6 {[%clk 0:09:59.2]} 2. d4 {[%clk 0:10:02.3]}
2... Nf6 {[%clk 0:10:00]} 3. Nc3 {[%clk 0:10:02]} 3... g6 {[%clk 0:10:00.5]} 4.
g3 {[%clk 0:10:02.9]} 4... Bg7 {[%clk 0:10:00.5]} 5. Bg2 {[%clk 0:10:03.2]} 5...
O-O {[%clk 0:10:01]} 6. Nge2 {[%clk 0:10:03.9]} 6... Nc6 {[%clk 0:09:46.7]} 7.
h3 {[%clk 0:09:57.4]} 7... e5 {[%clk 0:09:45.3]} 8. Be3 {[%clk 0:09:57.9]} 8...
exd4 {[%clk 0:09:42.5]} 9. Nxd4 {[%clk 0:09:58.1]} 9... Bd7 {[%clk 0:09:42.9]}
10. Nde2 {[%clk 0:09:36.2]} 10... Ne5 {[%clk 0:08:50.7]} 11. b3 {[%clk
0:09:29.4]} 11... Bc6 {[%clk 0:08:37.3]} 12. O-O {[%clk 0:09:14.8]} 12... Re8
{[%clk 0:08:37.5]} 13. Nd4 {[%clk 0:08:54.7]} 13... Ned7 {[%clk 0:08:20.6]} 14.
Nxc6 {[%clk 0:08:25.7]} 14... bxc6 {[%clk 0:08:18.6]} 15. Re1 {[%clk 0:08:07]}
15... c5 {[%clk 0:07:43.1]} 16. Qd2 {[%clk 0:07:47.1]} 16... Rb8 {[%clk
0:07:34.9]} 17. Rad1 {[%clk 0:07:43.6]} 17... a5 {[%clk 0:06:31.2]} 18. f4
{[%clk 0:06:41.2]} 18... Nf8 {[%clk 0:05:02.3]} 19. Qd3 {[%clk 0:05:39.3]} 19...
Ne6 {[%clk 0:04:58.9]} 20. Ne2 {[%clk 0:05:31.8]} 20... Qe7 {[%clk 0:04:09.5]}
21. Bf2 {[%clk 0:05:22.5]} 21... Nh5 {[%clk 0:03:52]} 22. Bf3 {[%clk 0:05:06.5]}
22... Qf6 {[%clk 0:03:33.8]} 23. Bxh5 {[%clk 0:04:47.8]} 23... gxh5 {[%clk
0:03:33.7]} 24. h4 {[%clk 0:04:07.1]} 24... a4 {[%clk 0:03:19.4]} 25. f5 {[%clk
0:03:46]} 25... Nd4 {[%clk 0:02:54.9]} 26. Nxd4 {[%clk 0:03:20]} 26... cxd4
{[%clk 0:02:56.8]} 27. Qf3 {[%clk 0:03:12.5]} 27... c5 {[%clk 0:02:43.2]} 28.
Qxh5 {[%clk 0:03:08.9]} 28... axb3 {[%clk 0:02:41.7]} 29. axb3 {[%clk
0:03:09.1]} 29... Re5 {[%clk 0:02:23.7]} 30. g4 {[%clk 0:02:38.3]} 30... Qe7
{[%clk 0:02:11]} 31. g5 {[%clk 0:02:30.2]} 31... f6 {[%clk 0:01:47]} 32. Qg4
{[%clk 0:01:58.7]} 32... Re8 {[%clk 0:01:46.6]} 33. gxf6 {[%clk 0:01:51.8]}
33... Qxf6 {[%clk 0:01:48.5]} 34. Bg3 {[%clk 0:01:52.1]} 34... R5e7 {[%clk
0:01:42.7]} 35. h5 {[%clk 0:01:53.3]} 35... Kh8 {[%clk 0:01:42.3]} 36. Bh4
{[%clk 0:01:40.4]} 36... Qh6 {[%clk 0:01:13]} 37. Bxe7 {[%clk 0:01:01]} 37...
Rxe7 {[%clk 0:01:06.7]} 38. Re2 {[%clk 0:00:59.4]} 38... Bf6 {[%clk 0:00:59.7]}
39. Qh3 {[%clk 0:00:42.7]} 39... d5 {[%clk 0:00:46.4]} 40. Rde1 {[%clk
0:00:36.6]} 40... Qg5+ {[%clk 0:00:36.2]} 41. Rg2 {[%clk 0:00:34.5]} 41... Qf4
{[%clk 0:00:24.9]} 42. Qg4 {[%clk 0:00:30.7]} 42... Qxg4 {[%clk 0:00:17.7]} 43.
Rxg4 {[%clk 0:00:31.5]} 43... c4 {[%clk 0:00:15.8]} 44. bxc4 {[%clk 0:00:30.7]}
44... dxc4 {[%clk 0:00:16]} 45. Rb1 {[%clk 0:00:28.1]} 45... h6 {[%clk
0:00:12.8]} 46. Rb6 {[%clk 0:00:25.7]} 46... Bg5 {[%clk 0:00:11]} 47. f6 {[%clk
0:00:23.5]} 1-0